bitfinex/quotes_ETHUSD_20220309
["timestamp","ask_amount","ask_price","bid_price","bid_amount"]
[1646845190119,3.55219661,2748.9,2748.8,0.00778711]
[1646845190318,2.0,2748.8,2748.4,1.69082479]
[1646845190518,2.0,2748.8,2748.4,1.68692748]
[1646845190519,4.73062,2748.8,2748.4,1.68692748]
[1646845190718,1.8204,2748.8,2748.4,1.68692748]
[1646845190917,1.8204,2748.8,2748.4,1.69082479]
[1646845191117,1.8204,2748.8,2748.4,0.78949371]
[1646845191516,1.8204,2748.8,2748.4,1.69082479]
[1646845191720,1.845124,2748.8,2748.4,0.7855964]
[1646845192021,1.845124,2748.8,2748.4,0.78949356]
[1646845192219,0.05238824,2748.7,2748.4,0.78949356]
[1646845192871,0.05238824,2748.7,2748.4,0.7855964]
[1646845193072,0.05238824,2748.7,2748.4,0.78344267]
[1646845193673,0.91019,2748.6,2748.4,0.78344267]
[1646845193872,0.04671501,2748.5,2748.4,0.78344267]
[1646845194074,0.04671501,2748.5,2748.4,0.7795444]
[1646845194274,0.04671501,2748.5,2748.4,0.78344272]
[1646845194675,0.934944,2748.8,2748.4,0.78344272]
[1646845194676,0.98965871,2748.8,2748.4,0.78344272]
[1646845194877,0.05681849,2748.7,2748.6,0.6767208]
[1646845195076,0.934944,2748.8,2748.6,0.6767208]
[1646845195277,0.91022,2748.8,2748.6,0.6767208]
[1646845196116,0.91022,2748.8,2748.7,0.6767208]
[1646845197219,2.73047,2748.8,2748.7,0.6767208]
[1646845197821,2.73047,2748.8,2748.6,0.6767208]
[1646845200068,2.73047,2748.8,2748.5,0.6767208]
[1646845200270,2.73047,2748.8,2748.4,1.4562652]
[1646845200466,2.73047,2748.8,2748.5,0.6767208]
[1646845200665,0.91012,2748.7,2748.5,0.6767208]
[1646845200867,0.91022,2748.8,2748.5,0.6767208]
[1646845201070,0.86022,2748.8,2748.5,0.6767208]
[1646845201272,0.86022,2748.8,2748.6,0.6767208]
[1646845201471,0.90985,2749.0,2748.7,2.18786024]
[1646845201676,0.00389751,2748.9,2748.8,1.51113944]
[1646845201875,0.00389751,2748.9,2748.8,1.59529253]
[1646845202071,0.00389751,2748.9,2748.8,1.51113944]
[1646845202474,0.05180166,2749.1,2748.8,1.51113944]
[1646845202677,0.029168,2748.9,2748.6,1.51113944]
[1646845202974,3.58620625,2748.9,2748.7,1.51116803]
[1646845203172,3.58620625,2748.9,2748.4,0.78344271]
[1646845203173,0.04920984,2748.8,2748.4,0.78344271]
[1646845203373,0.04920984,2748.8,2748.5,1.51108496]
[1646845203374,0.91022,2748.7,2748.5,1.51108496]
[1646845203628,0.02446325,2748.6,2748.5,1.51108496]
[1646845204717,0.20549097,2748.6,2748.5,1.51108496]
[1646845206119,4.15871113,2748.6,2748.5,1.51108496]
[1646845206420,4.15871113,2748.6,2748.4,0.7834426]
[1646845206421,5.5,2748.5,2748.4,0.7834426]
[1646845206620,4.0,2748.4,2748.1,0.3927982]
[1646845206822,3.9634481,2748.3,2748.1,0.3927982]
[1646845207021,3.9634481,2748.3,2748.0,0.01559541]
[1646845207022,5.55459131,2748.1,2748.0,0.01559541]
[1646845207224,9.44835931,2748.1,2748.0,0.01559541]
[1646845207481,9.44835931,2748.1,2747.7,0.3927982]
[1646845207482,11.693768,2748.1,2747.7,0.3927982]
[1646845207687,11.693768,2748.1,2747.0,0.90133108]
[1646845207688,1.04029754,2747.3,2747.0,0.90133108]
[1646845207892,1.04029754,2747.3,2746.8,0.90133108]
[1646845207893,0.029168,2747.1,2746.8,0.90133108]
[1646845208086,0.91072,2747.0,2746.8,0.90133108]
[1646845208284,0.05811553,2746.9,2746.7,0.90133108]
[1646845208484,0.05811553,2746.9,2746.6,0.90133108]
[1646845208485,0.18102772,2746.8,2746.6,0.90133108]
[1646845208687,0.08257878,2746.9,2746.6,0.90133108]
[1646845208688,0.05811553,2746.9,2746.6,0.90133108]
[1646845208883,0.08261653,2746.9,2746.6,0.90133108]
[1646845209085,0.08261653,2746.9,2746.8,1.01795618]
[1646845209284,0.99340653,2746.9,2746.8,1.01795618]
[1646845209483,0.05811553,2746.9,2746.8,1.01795618]
[1646845209886,0.02446325,2746.9,2746.8,1.01795618]
[1646845210084,0.20549097,2746.9,2746.8,1.01795618]
[1646845210288,0.20549097,2746.9,2746.8,1.10089786]
[1646845210485,0.024501,2747.2,2746.9,0.41098193]
[1646845210685,4.8646,2747.8,2747.7,0.04900199]
[1646845210885,4.8646,2747.8,2746.9,0.41098193]
[1646845210886,0.3646,2747.6,2746.9,0.41098193]
[1646845211126,0.9674115,2747.1,2746.9,0.41098193]
[1646845211420,0.0452002,2747.0,2746.9,0.41513656]
[1646845211916,0.0666852,2747.0,2746.9,0.41513656]
[1646845212318,0.0666852,2747.0,2746.9,0.41098193]
[1646845212721,2.73251,2747.1,2746.9,0.41098193]
[1646845213822,2.73251,2747.1,2746.9,0.41513661]
[1646845214321,2.73251,2747.1,2747.0,0.50897809]
[1646845214523,2.73251,2747.1,2747.0,1.01795618]
[1646845215276,2.7582,2747.1,2747.0,1.01795618]
[1646845216181,2.73251,2747.1,2747.0,1.01795618]
[1646845216380,0.91084,2747.1,2747.0,1.01795618]
[1646845219317,0.145855,2747.3,2747.0,4.51795618]
[1646845219518,2.13131451,2747.7,2747.0,4.51795618]
[1646845219519,1.021001,2747.7,2747.0,4.60158373]
[1646845219717,3.723101,2747.9,2747.0,3.58362755]
[1646845219916,3.723101,2747.9,2747.4,0.50897809]
[1646845219917,1.246101,2747.9,2747.4,0.50897809]
[1646845220117,0.021001,2747.9,2747.4,1.01795618]
[1646845220317,3.82213,2748.1,2747.6,1.2173067]
[1646845220318,0.931321,2748.0,2747.6,1.2173067]
[1646845220519,0.1804,2748.1,2747.6,1.2173067]
[1646845221022,0.1804,2748.3,2747.7,0.07712637]
[1646845221222,1.0,2748.4,2747.7,0.07712637]
[1646845221223,0.021001,2748.4,2747.7,0.07712637]
[1646845221416,1.82047,2748.6,2747.7,0.07712637]
[1646845221618,1.844755,2748.6,2747.7,0.07712637]
[1646845222117,1.844755,2748.6,2748.0,0.00389039]
[1646845222368,1.844755,2748.6,2748.1,1.09681183]
[1646845222571,1.82047,2748.6,2748.1,1.09681183]
[1646845222871,1.82047,2748.6,2747.7,0.07712637]
[1646845223070,1.845349,2748.6,2747.7,0.07712637]
[1646845223677,0.029168,2748.5,2748.2,1.08489138]
[1646845224473,0.939358,2748.5,2748.2,1.08021738]
[1646845224872,0.939358,2748.5,2747.7,0.07712637]
[1646845225274,0.939358,2748.5,2748.1,1.01795618]
[1646845225275,0.029168,2748.5,2748.1,1.01795618]
[1646845225476,0.021001,2748.6,2748.2,3.5]
[1646845225673,0.05605847,2748.8,2748.2,3.56910092]
[1646845225674,0.026636,2748.8,2748.2,3.56910092]
[1646845225873,0.0013753,2748.7,2748.3,0.88061299]
[1646845226623,0.05411665,2749.2,2748.4,5.01108115]
[1646845226819,0.029168,2749.0,2748.5,1.51108115]
[1646845227020,0.00415267,2748.7,2748.6,3.5]
[1646845227222,0.00415267,2748.7,2748.6,5.01108115]
[1646845227824,0.021001,2749.1,2748.6,1.51108115]
[1646845228024,0.021001,2749.1,2749.0,1.2017503]
[1646845228225,0.021001,2749.2,2749.0,1.2017503]
[1646845228425,0.021001,2749.2,2748.8,0.90978]
[1646845228625,0.021001,2749.2,2748.9,1.51088602]
[1646845228830,0.021001,2749.2,2748.9,2.46730046]
[1646845229025,0.021001,2749.2,2749.0,1.51088602]
[1646845229225,0.021001,2749.2,2748.9,0.95641444]
[1646845229429,0.02515319,2749.2,2748.9,0.95641444]
[1646845229625,0.02515319,2749.2,2749.0,1.51079508]
[1646845230369,0.021001,2749.2,2749.0,1.51079508]
[1646845230570,0.02515314,2749.2,2749.1,1.01795618]
[1646845230771,0.05093258,2749.6,2749.3,0.07130727]
[1646845230971,0.145754,2749.4,2749.1,0.93020978]
[1646845231171,0.025731,2749.5,2749.1,0.93020978]
[1646845231774,0.05093258,2749.6,2749.1,0.93020978]
[1646845231976,0.05093258,2749.6,2749.4,1.18432912]
[1646845232179,0.05093258,2749.6,2749.5,3.5]
[1646845232377,0.90965,2750.0,2749.5,1.51053015]
[1646845233177,0.00137552,2749.7,2749.5,1.51053015]
[1646845233826,0.90965,2750.0,2749.5,1.51053015]
[1646845234223,1.87432933,2750.2,2749.2,0.22884204]
[1646845234224,0.91113552,2749.7,2749.2,0.22884204]
[1646845234423,0.91113552,2749.7,2749.3,1.51064364]
[1646845235024,0.90976,2749.7,2749.3,1.51064364]
[1646845235425,0.00415173,2749.6,2749.3,1.51064364]
[1646845235827,0.00415173,2749.6,2749.4,0.42123169]
[1646845236028,0.00415173,2749.6,2749.4,0.93020978]
[1646845236327,0.90976,2749.7,2749.4,0.93020978]
[1646845236533,0.00415173,2749.6,2749.4,0.93020978]
[1646845237578,0.90976,2749.7,2749.4,0.93020978]
[1646845237778,0.00384064,2749.6,2749.4,0.93020978]
[1646845238381,0.00384064,2749.6,2749.5,1.51051058]
[1646845238883,0.145722,2749.8,2749.5,1.51051058]
[1646845239087,0.00384064,2749.6,2749.4,0.93020978]
[1646845239884,0.90965,2750.0,2749.4,0.93020978]
[1646845240084,2.77893133,2750.2,2749.4,0.93020978]
[1646845240085,0.91361357,2749.6,2749.4,0.93020978]
[1646845240888,0.91361357,2749.6,2749.4,0.50897809]
[1646845241137,0.05175581,2749.9,2749.5,0.42123169]
[1646845241326,0.05175581,2749.9,2749.5,0.93020978]
[1646845241526,0.00381357,2749.6,2749.5,0.93020978]
[1646845242327,0.05175581,2749.9,2749.5,0.93020978]
[1646845242528,0.00383486,2749.7,2749.5,0.93020978]
[1646845242929,0.00383486,2749.7,2749.5,0.78221183]
[1646845243529,0.90967,2749.8,2749.5,0.78221183]
[1646845243731,0.00371044,2749.7,2749.6,3.5]
[1646845244236,0.00371044,2749.7,2749.5,0.78221183]
[1646845244431,0.00371044,2749.7,2749.6,3.5]
[1646845244630,0.90956,2750.1,2749.6,1.05785152]
[1646845244877,0.90963,2750.0,2749.6,1.05785152]
[1646845245076,0.00371044,2749.7,2749.6,1.05785152]
[1646845245877,0.90963,2750.0,2749.6,1.05785152]
[1646845246075,0.00370797,2749.8,2749.6,1.05785152]
[1646845246478,0.00370797,2749.8,2749.3,3.57914145]
[1646845246680,0.90973,2749.7,2749.4,1.51056751]
[1646845246886,0.90973,2749.7,2749.6,0.50897809]
[1646845247080,0.95773377,2749.7,2749.6,0.50897809]
[1646845247485,0.9614353,2749.7,2749.6,0.50897809]
[1646845248383,0.95773377,2749.7,2749.6,0.50897809]
[1646845250820,1.81967,2749.8,2749.6,0.50897809]
[1646845250821,1.81967,2749.8,2749.7,0.65363044]
[1646845251024,3.18797235,2749.8,2749.7,0.65363044]
[1646845251525,0.91346235,2749.8,2749.7,0.65363044]
[1646845251730,0.91346235,2749.8,2749.7,0.92686418]
[1646845251924,0.90976,2749.8,2749.7,0.92686418]
[1646845252129,0.90976,2749.8,2749.7,1.43584227]
[1646845252776,0.00370226,2749.9,2749.7,1.43584227]
[1646845253181,0.90962,2750.0,2749.7,1.43584227]
[1646845253380,0.00370221,2749.9,2749.7,1.43584227]
[1646845253980,0.00370221,2749.9,2749.7,1.51457416]
[1646845254378,1.81926,2750.3,2749.7,1.51457416]
[1646845254577,0.00370212,2749.9,2749.7,1.51457416]
[1646845254782,0.00370212,2749.9,2749.8,3.5]
[1646845254978,0.00370212,2749.9,2749.8,0.08869029]
[1646845255379,0.00370212,2749.9,2749.8,3.58869029]
[1646845255578,0.00096,2750.7,2749.9,0.07414825]
[1646845255779,0.1804,2750.8,2750.0,1.53125458]
[1646845255982,0.19520291,2751.0,2750.2,0.43397106]
[1646845256228,0.19520291,2751.0,2750.3,3.5]
[1646845256229,0.01480291,2751.0,2750.3,3.5]
[1646845256426,0.01480291,2751.0,2750.9,0.89459458]
[1646845257025,0.03934868,2751.3,2750.9,1.16782832]
[1646845257228,0.00472895,2751.2,2750.9,1.16782832]
[1646845257432,0.04508702,2751.2,2751.0,0.50897809]
[1646845257829,0.04035807,2751.2,2751.0,0.50897809]
[1646845258133,0.04154048,2751.2,2751.0,0.50897809]
[1646845258329,0.04154048,2751.2,2751.1,3.5]
[1646845258532,0.04154048,2751.2,2751.1,0.08603121]
[1646845259134,0.04035807,2751.2,2751.1,0.08603121]
[1646845261981,0.04035807,2751.2,2751.0,0.50897809]
[1646845262380,0.04035807,2751.2,2751.1,0.27323374]
[1646845262594,0.04035807,2751.2,2751.1,0.05123132]
[1646845262595,0.08691909,2751.2,2751.1,0.05123132]
[1646845262785,5.5,2751.1,2751.0,0.50897809]
[1646845262985,9.8096,2751.1,2751.0,0.50897809]
[1646845263382,10.98378316,2751.1,2751.0,0.50897809]
[1646845263639,11.98378316,2751.1,2751.0,0.50897809]
[1646845264030,8.48378316,2751.1,2751.0,0.50897809]
[1646845264231,1.31918316,2751.1,2751.0,0.50897809]
[1646845264431,1.68378316,2751.1,2751.0,0.50897809]
[1646845264630,1.31918316,2751.1,2751.0,0.50897809]
[1646845264831,4.81918316,2751.1,2751.0,0.50897809]
[1646845265335,5.18378316,2751.1,2751.0,0.50897809]
[1646845265931,5.73628129,2751.1,2751.0,0.50897809]
[1646845266132,1.66209813,2751.1,2751.0,0.50897809]
[1646845266334,1.90683813,2751.1,2751.0,0.50897809]
[1646845267132,1.46183813,2751.1,2751.0,0.50897809]
[1646845267603,0.90934,2751.1,2751.0,0.50897809]
[1646845269199,4.40934,2751.1,2751.0,0.50897809]
[1646845269599,0.90934,2751.1,2751.0,0.50897809]
[1646845270299,2.30550207,2751.1,2751.0,0.50897809]
[1646845270703,1.65434,2751.1,2751.0,0.50897809]
[1646845273532,1.35434,2751.1,2751.0,0.50897809]
[1646845273733,1.85905807,2751.2,2751.1,0.25626373]
[1646845273932,1.86296231,2751.2,2751.1,0.25626373]
[1646845274135,2.16296231,2751.2,2751.1,0.25626373]
[1646845274333,2.16296231,2751.2,2751.1,0.76524182]
[1646845274733,2.15905807,2751.2,2751.1,0.76524182]
[1646845275177,6.10405807,2751.2,2751.1,0.76524182]
[1646845275375,7.10405807,2751.2,2751.1,0.76524182]
[1646845276076,7.10405807,2751.2,2751.1,0.24927671]
[1646845276676,7.46865807,2751.2,2751.1,0.24927671]
[1646845277885,3.60405807,2751.2,2751.1,0.24927671]
[1646845278083,7.46865807,2751.2,2751.1,0.24927671]
[1646845278391,3.60405807,2751.2,2751.1,0.24927671]
[1646845279625,3.60405807,2751.2,2750.6,0.021001]
[1646845279626,0.9093,2751.0,2750.6,0.021001]
[1646845279831,0.04035807,2751.2,2750.7,1.50993876]
[1646845280027,0.04035807,2751.2,2750.8,0.08390879]
[1646845280226,0.04035807,2751.2,2750.9,1.50993876]
[1646845280827,0.90926,2751.1,2750.9,1.50993876]
[1646845281035,0.90926,2751.1,2751.0,0.06895655]
[1646845281529,0.90926,2751.1,2750.8,1.14346442]
[1646845281729,0.90926,2751.1,2750.9,1.50983833]
[1646845282375,0.91296125,2751.1,2750.9,1.50983833]
[1646845282982,0.91296125,2751.1,2750.8,1.14346442]
[1646845283184,0.90926,2751.1,2750.9,1.50988302]
[1646845283381,0.91043075,2751.1,2750.9,1.50988302]
[1646845283781,0.91043075,2751.1,2750.8,1.14346442]
[1646845284384,0.90926,2751.1,2750.8,1.14346442]
[1646845284586,0.91043075,2751.1,2750.9,0.08538301]
[1646845284783,0.91043075,2751.1,2751.0,0.24927671]
[1646845285584,0.90926,2751.1,2751.0,0.24927671]
[1646845286824,0.95358131,2751.2,2751.0,0.24927671]
[1646845286825,0.04035807,2751.2,2751.0,0.24927671]
[1646845287239,0.04445746,2751.2,2751.0,0.24927671]
[1646845287428,0.00409939,2751.2,2751.0,0.24927671]
[1646845287830,0.00409939,2751.2,2751.1,1.09963331]
[1646845288027,0.03934868,2751.3,2751.2,0.08961089]
[1646845288433,0.08027517,2751.3,2751.2,0.08961089]
[1646845290087,0.98946517,2751.3,2751.2,0.3388876]
[1646845290683,0.98946517,2751.3,2751.2,0.24927671]
[1646845292386,1.28946517,2751.3,2751.2,0.24927671]
[1646845292593,2.09906517,2751.3,2751.2,0.24927671]
[1646845292784,2.09906517,2751.3,2750.6,0.46734712]
[1646845292785,1.8189168,2751.1,2750.6,0.46734712]
[1646845292986,0.15579795,2750.8,2750.6,0.46734712]
[1646845293187,0.15579795,2750.8,2750.6,0.44634612]
[1646845293833,0.90939,2750.9,2750.8,0.31159589]
[1646845294038,1.055068,2750.9,2750.8,0.31159589]
[1646845294233,0.90939,2750.9,2750.8,0.31159589]
[1646845297484,1.27399,2750.9,2750.8,0.31159589]
[1646845297686,1.27399,2750.9,2750.6,0.44634612]
[1646845297687,5.90713458,2750.8,2750.6,0.44634612]
[1646845297883,0.85395469,2750.7,2750.6,0.13475023]
[1646845298088,0.85395469,2750.7,2750.5,0.53950074]
[1646845298089,5.8646,2750.6,2750.5,0.53950074]
[1646845298282,9.33382429,2750.6,2750.5,0.53950074]
[1646845298683,2.71929,2750.6,2750.5,0.53950074]
[1646845299088,1.35469,2750.6,2750.5,0.53950074]
[1646845299287,2.35469,2750.6,2750.5,0.53950074]
[1646845299483,1.35469,2750.6,2750.5,0.53950074]
[1646845300684,1.35469,2750.6,2750.5,0.05239379]
[1646845300888,1.40178005,2750.6,2750.5,0.05239379]
[1646845301729,1.40178005,2750.6,2750.5,0.09842177]
[1646845302534,1.35469,2750.6,2750.5,0.09842177]
[1646845302736,1.35469,2750.6,2750.5,0.21688471]
[1646845303735,1.35469,2750.6,2750.5,1.77309083]
[1646845304741,1.25469,2750.6,2750.5,1.89155377]
[1646845305785,1.25469,2750.6,2750.5,2.01001671]
[1646845305984,1.25469,2750.6,2750.5,2.01001914]
[1646845306385,1.21344818,2750.7,2750.5,2.01001914]
[1646845306585,1.21344818,2750.7,2750.6,1.53133057]
[1646845306586,0.00372818,2750.7,2750.6,1.53133057]
[1646845307189,0.00372818,2750.7,2750.6,1.51018057]
[1646845307386,1.81868,2750.9,2750.6,1.51018057]
[1646845307584,0.00372809,2750.8,2750.6,1.51018057]
[1646845307987,4.55107709,2750.8,2750.6,1.51018057]
[1646845308185,4.85107709,2750.8,2750.6,1.51018057]
[1646845308384,0.90946,2750.7,2750.6,1.51018057]
[1646845313885,2.03082993,2750.8,2750.6,1.51018057]
[1646845314287,1.82267807,2750.8,2750.6,1.51018057]
[1646845314485,0.90946,2750.7,2750.6,1.51018057]
[1646845315587,0.00372803,2750.8,2750.6,1.51018057]
[1646845315786,3.02822,2750.9,2750.6,1.51018057]
[1646845315986,0.00372807,2750.8,2750.6,1.51018057]
[1646845317039,3.02822,2750.9,2750.6,1.51018057]
[1646845317239,0.00372803,2750.8,2750.6,1.51018057]
[1646845317437,0.90941,2750.7,2750.6,1.51018057]
[1646845321190,1.20941,2750.7,2750.6,1.51018057]
[1646845321592,1.65441,2750.7,2750.6,1.51018057]
[1646845322392,2.65441,2750.7,2750.6,1.51018057]
[1646845323394,1.65441,2750.7,2750.6,1.51018057]
[1646845323835,1.20941,2750.7,2750.6,1.51018057]
[1646845325547,0.90941,2750.7,2750.6,1.51018057]
[1646845325740,0.00372807,2750.8,2750.6,1.51018057]
[1646845325942,0.00372807,2750.8,2750.7,0.021131]
[1646845326143,0.00372807,2750.8,2750.7,1.51018057]
[1646845326641,0.90927,2751.1,2750.6,1.51018057]
[1646845326844,0.90927,2751.1,2750.7,1.51018057]
[1646845327042,0.90927,2751.1,2750.5,3.22887903]
[1646845327043,0.00372798,2750.9,2750.8,1.51018057]
[1646845327489,0.00372798,2750.9,2750.7,1.53118157]
[1646845327693,0.00372798,2750.9,2750.8,1.51018057]
[1646845327694,3.64145798,2750.9,2750.8,1.51018057]
[1646845327891,3.63773,2750.9,2750.8,1.51018057]
[1646845328095,3.63773,2750.9,2750.8,0.11846294]
[1646845328096,6.38273,2750.9,2750.8,0.11846294]
[1646845328293,2.5,2750.8,2750.6,0.16591275]
[1646845328493,0.445,2750.7,2750.6,0.16591275]
[1646845328692,0.745,2750.7,2750.6,0.16591275]
[1646845329393,1.65441,2750.7,2750.6,0.16591275]
[1646845330996,0.445,2750.7,2750.6,0.16591275]
[1646845331235,0.91313825,2750.8,2750.6,0.16591275]
[1646845331438,0.90941,2750.8,2750.6,0.16591275]
[1646845331638,0.00372825,2750.8,2750.7,0.021176]
[1646845332035,0.00372825,2750.8,2750.7,0.021006]
[1646845332244,0.00372825,2750.8,2750.6,0.25939054]
[1646845332640,1.964337,2751.0,2750.9,0.89881869]
[1646845332841,2.873657,2751.0,2750.9,0.89881869]
[1646845333043,2.727975,2751.0,2750.9,0.89881869]
[1646845333245,2.727975,2751.0,2750.9,0.94484667]
[1646845333442,1.81863,2751.0,2750.9,0.94484667]
[1646845334042,1.81863,2751.0,2750.9,0.99229648]
[1646845334543,0.00372778,2751.1,2750.9,1.11075942]
[1646845334984,1.84337749,2751.2,2750.9,1.11075942]
[1646845335184,1.84337749,2751.2,2750.9,1.15820923]
[1646845335384,0.00372773,2751.1,2750.9,1.29768817]
[1646845335585,0.03934868,2751.3,2751.1,0.00745545]
[1646845335787,0.03934868,2751.3,2751.1,0.11921849]
[1646845337588,0.04307903,2751.3,2751.1,0.11921849]
[1646845338634,0.03934868,2751.3,2751.1,0.11921849]
[1646845338835,0.92054839,2751.8,2751.5,0.89735776]
[1646845339236,0.04320019,2751.7,2751.5,0.89735776]
[1646845339439,0.04320019,2751.7,2751.5,1.0158207]
[1646845339639,1.22054839,2751.8,2751.5,1.0369067]
[1646845339640,0.04263176,2751.6,2751.5,1.0369067]
[1646845339838,0.04263176,2751.6,2751.5,1.0158207]
[1646845340644,0.04263176,2751.6,2751.5,0.16449092]
[1646845341646,0.04263176,2751.6,2751.5,0.2105189]
[1646845342692,0.04263176,2751.6,2751.5,0.32898184]
[1646845343093,0.95179176,2751.6,2751.5,0.32898184]
[1646845343695,0.95179176,2751.6,2751.5,0.37500982]
[1646845344696,0.90179176,2751.6,2751.5,0.49347276]
[1646845345795,0.90179176,2751.6,2751.5,0.6119357]
[1646845346638,0.90179176,2751.6,2751.5,0.65796368]
[1646845347240,5.236565,2751.7,2751.5,0.65796368]
[1646845347241,0.30372696,2751.7,2751.5,0.65796368]
[1646845347442,0.00372696,2751.7,2751.6,0.029168]
[1646845347640,0.00372696,2751.7,2751.6,0.11023938]
[1646845347840,0.00372696,2751.7,2751.6,0.08107138]
[1646845348143,0.14563,2751.9,2751.6,4.60398619]
[1646845348339,0.14563,2751.9,2751.7,1.59449442]
[1646845348540,5.00737988,2752.0,2751.8,1.50959942]
[1646845349239,5.00737988,2752.0,2751.8,1.53061842]
[1646845349240,5.30737988,2752.0,2751.8,1.53061842]
[1646845349440,5.30737988,2752.0,2751.8,0.021019]
[1646845349639,5.31110679,2752.0,2751.8,0.021019]
[1646845349893,5.31110679,2752.0,2751.9,0.021186]
[1646845350785,5.30737988,2752.0,2751.9,0.021186]
[1646845351188,5.30737988,2752.0,2751.9,1.55719818]
[1646845351189,5.00737988,2752.0,2751.9,1.55719818]
[1646845351391,5.00737988,2752.0,2751.9,5.05719818]
[1646845351992,5.00737988,2752.0,2751.9,5.42179818]
[1646845352491,5.00737988,2752.0,2751.9,1.92179818]
[1646845352694,5.00737988,2752.0,2751.9,1.55719818]
[1646845353496,4.88891694,2752.0,2751.9,1.55719818]
[1646845354342,4.88891694,2752.0,2751.9,1.53067718]
[1646845354742,4.88891694,2752.0,2751.9,1.55276418]
[1646845355544,3.27900097,2752.0,2751.9,1.55276418]
[1646845356552,3.27900097,2752.0,2751.9,1.50949118]
[1646845356749,3.27900097,2752.0,2751.7,0.105896]
[1646845356750,3.27900097,2752.0,2751.8,1.53049218]
[1646845356947,3.27900097,2752.0,2751.9,1.50949118]
[1646845357405,3.27900097,2752.0,2751.7,1.53043666]
[1646845357600,3.27900097,2752.0,2751.8,1.50943566]
[1646845358103,3.28272788,2752.0,2751.8,1.50943566]
[1646845358505,0.909,2751.9,2751.7,0.021001]
[1646845358708,0.909,2751.9,2751.8,1.50938448]
[1646845359306,0.91016605,2751.9,2751.8,1.50938448]
[1646845359909,0.86271624,2751.9,2751.6,1.50938448]
[1646845360108,3.27900097,2752.0,2751.7,1.50938448]
[1646845360312,3.27900097,2752.0,2751.8,0.021384]
[1646845360511,3.28016702,2752.0,2751.9,1.50938448]
[1646845361334,3.27900097,2752.0,2751.9,1.50938448]
[1646845361933,3.27900097,2752.0,2751.8,1.50938448]
[1646845362135,4.18799097,2752.0,2751.8,1.50938448]
[1646845362338,4.18799097,2752.0,2751.9,1.50938448]
[1646845362535,4.18799097,2752.0,2751.8,1.50938448]
[1646845363036,4.19208686,2752.0,2751.8,1.50938448]
[1646845363237,4.19208686,2752.0,2751.9,1.50938448]
[1646845363439,4.19208686,2752.0,2751.9,3.529168]
[1646845363440,3.28309686,2752.0,2751.9,3.529168]
[1646845363637,3.28309686,2752.0,2751.9,1.53855248]
[1646845363836,3.27900097,2752.0,2751.9,1.53855248]
[1646845366387,3.27900097,2752.0,2751.9,1.61383582]
[1646845371747,0.01475976,2752.1,2752.0,5.5]
[1646845371952,5.976e-05,2752.1,2752.0,12.66578014]
[1646845372148,5.976e-05,2752.1,2752.0,13.33941215]
[1646845372391,5.976e-05,2752.1,2752.0,24.14038014]
[1646845372593,5.976e-05,2752.1,2752.0,27.07928301]
[1646845372994,5.976e-05,2752.1,2752.0,23.57928301]
[1646845373195,0.145567,2752.2,2752.1,5.5]
[1646845373400,0.17508652,2752.2,2752.1,10.53855248]
[1646845373595,0.17508652,2752.2,2752.1,7.80715248]
[1646845373996,0.17645333,2752.2,2752.1,7.80715248]
[1646845374499,0.05799039,2752.2,2752.1,7.03249298]
[1646845374699,0.05799039,2752.2,2752.1,1.53855248]
[1646845374897,0.05662358,2752.2,2752.1,1.53855248]
[1646845375696,1.09004,2753.0,2752.7,0.58670509]
[1646845375896,1.08908,2753.0,2752.7,0.58670509]
[1646845376152,0.9086764,2752.8,2752.7,0.58670509]
[1646845376341,0.1804,2752.8,2752.7,0.58670509]
[1646845376543,0.03488352,2753.1,2752.7,2.12053592]
[1646845376740,0.03488352,2753.1,2752.8,1.52996981]
[1646845376942,0.03488352,2753.1,2752.7,0.58266611]
[1646845377542,3.12538322,2753.1,2752.7,0.58266611]
[1646845378044,0.05368736,2753.0,2752.7,0.58266611]
[1646845378645,0.0578691,2753.0,2752.7,0.58266611]
[1646845379443,0.05368736,2753.0,2752.7,0.58266611]
[1646845379886,0.05786916,2753.0,2752.7,0.58266611]
[1646845380491,0.05786916,2753.0,2752.7,0.60370711]
[1646845380492,0.96657916,2753.0,2752.7,0.60370711]
[1646845380692,0.90872,2752.8,2752.7,0.58266611]
[1646845380894,0.86127019,2752.8,2752.7,0.58266611]
[1646845381094,3.9348946,2752.9,2751.9,0.1824654]
[1646845381095,6.4087419,2752.7,2751.9,0.1824654]
[1646845381302,6.4087419,2752.7,2752.3,1.5089155]
[1646845381303,0.445,2752.6,2752.3,1.5089155]
[1646845381495,0.85556802,2752.6,2751.9,0.1614644]
[1646845381693,0.85556802,2752.6,2752.0,1.50898006]
[1646845382094,0.85556802,2752.6,2752.1,1.11731661]
[1646845382299,0.00404438,2752.4,2752.2,1.50898006]
[1646845383197,4.8445646,2752.5,2752.2,1.50898006]
[1646845383395,0.00404433,2752.4,2752.2,1.50898006]
[1646845383864,0.00404433,2752.4,2751.9,0.1614644]
[1646845384063,0.05328643,2752.3,2752.0,1.50906093]
[1646845384263,1.8180184,2752.2,2752.0,1.50906093]
[1646845384464,3.6361084,2752.2,2752.0,1.50906093]
[1646845384665,3.9361084,2752.2,2752.0,1.50906093]
[1646845384870,3.9361084,2752.2,2751.9,6.44e-05]
[1646845384871,6.36111719,2752.1,2751.9,6.44e-05]
[1646845385064,6.36111719,2752.1,2751.5,0.65796368]
[1646845385065,0.05255636,2751.9,2751.5,0.65796368]
[1646845385264,0.96174636,2751.9,2751.5,0.65796368]
[1646845385668,1.26174636,2751.9,2751.5,0.65796368]
[1646845385865,1.26566548,2751.9,2751.5,0.65796368]
[1646845386465,0.3646,2751.8,2751.5,0.65796368]
[1646845386668,0.95957994,2751.7,2751.5,0.65796368]
[1646845386866,0.90914,2751.6,2751.5,0.65796368]
[1646845387066,1.20914,2751.6,2751.5,0.65796368]
[1646845388896,1.20914,2751.6,2751.5,0.67897468]
[1646845389096,1.20914,2751.6,2751.5,0.65796368]
[1646845391441,1.20914,2751.6,2751.5,0.67896868]
[1646845394450,0.91286698,2751.9,2751.5,0.6621087]
[1646845394653,0.91286698,2751.9,2751.8,1.07992617]
[1646845395092,0.90894,2751.9,2751.8,1.07992617]
[1646845395296,0.90894,2751.9,2751.8,1.05846717]
[1646845395493,0.00392702,2752.0,2751.8,1.07957817]
[1646845395693,0.01570574,2752.4,2752.3,0.6540836]
[1646845396295,0.3646,2752.5,2752.3,0.6540836]
[1646845396493,0.3646,2752.5,2752.3,1.82185064]
[1646845396692,1.99802,2752.6,2752.3,1.82185064]
[1646845396693,1.963227,2752.6,2752.3,1.82185064]
[1646845396893,2.327827,2752.6,2752.3,1.82185064]
[1646845397093,2.8720335,2752.6,2752.3,1.82185064]
[1646845397293,1.81766,2752.5,2752.3,1.82185064]
[1646845398742,1.76766,2752.5,2752.3,1.82185064]
[1646845398944,1.77184308,2752.5,2752.3,1.82185064]